bitfinex-derivatives/quotes_SOLF0:USTF0_20241015
["timestamp","ask_amount","ask_price","bid_price","bid_amount"]
[1729016347879,1.3892,156.07,155.95,24.63]
[1729016348087,1.01047683,156.06,155.95,24.63]
[1729016348288,6.08,156.05,155.95,24.63]
[1729016348589,1.01047683,156.04,155.95,24.63]
[1729016348782,6.08,156.05,155.95,24.63]
[1729016348783,1.01065741,156.03,155.95,24.63]
[1729016349090,6.08,156.05,155.99,24.63]
[1729016349290,1.3892,156.07,156.02,24.63]
[1729016349483,1.0103642,156.06,156.02,24.63]
[1729016349683,3.2039,156.08,156.02,24.63]
[1729016349887,6.08,156.1,156.02,24.63]
[1729016350187,1.01020336,156.09,156.04,3.2046]
[1729016350591,1.01020336,156.09,156.05,24.63]
[1729016350788,3.2034,156.11,156.07,3.204]
[1729016351188,4.21350661,156.1,156.06,3.2042]
[1729016351381,1.3956,156.12,156.05,24.63]
[1729016351599,1.01002475,156.11,156.05,24.63]
[1729016352293,1.01002475,156.11,156.02,24.63]
[1729016352591,1.3956,156.12,156.03,3.2048]
[1729016352791,1.01016919,156.11,156.02,24.63]
[1729016352987,2.38246919,156.11,156.02,24.63]
[1729016353289,1.01020005,156.1,156.0,24.63]
[1729016353594,6.08,156.09,156.0,24.63]
[1729016353798,1.01020005,156.08,156.0,24.63]
[1729016354385,7.09020005,156.07,155.97,24.63]
[1729016354588,3.2058,156.0,155.96,3.2062]
[1729016354791,6.08,156.03,155.94,30.71]
[1729016355093,1.01062371,156.02,155.94,30.71]
[1729016355486,1.01062371,156.02,155.92,24.63]
[1729016355691,1.3196,156.01,155.92,24.63]
[1729016356194,1.01066158,156.0,155.92,24.63]
[1729016356386,1.3196,156.01,155.92,24.63]
[1729016357291,1.4097,156.02,155.95,24.63]
[1729016357586,3.2055,156.01,155.95,24.63]
[1729016357790,1.4097,156.02,155.95,24.63]
[1729016357994,6.08,156.04,155.95,24.63]
[1729016358188,3.2051,156.03,155.99,3.2056]
[1729016358490,1.3405,156.07,156.01,24.63]
[1729016360398,3.2046,156.05,156.02,3.2051]
[1729016360599,3.2046,156.05,156.01,24.63]
[1729016361097,6.08,156.08,156.01,24.63]
[1729016361886,1.3377,156.09,156.01,24.63]
[1729016362092,3.2045,156.06,156.02,3.2051]
[1729016362288,1.3377,156.09,156.01,24.63]
[1729016362687,1.3377,156.09,155.98,24.63]
[1729016362888,1.3377,156.09,155.98,30.71]
[1729016363101,1.01031783,156.08,155.98,30.71]
[1729016363294,1.01031783,156.08,155.99,3.2056]
[1729016363493,1.01031783,156.08,155.98,30.71]
[1729016363702,3.2045,156.05,156.0,3.2054]
[1729016364007,1.3377,156.09,156.01,24.63]
[1729016364303,1.01033014,156.08,156.01,24.63]
[1729016364795,3.2047,156.05,156.01,27.8352]
[1729016365096,3.2047,156.05,156.01,24.63]
[1729016365293,1.3377,156.09,156.01,24.63]
[1729016365500,1.01031811,156.08,156.02,3.205]
[1729016365994,3.2042,156.07,156.03,3.2049]
[1729016366188,24.63,156.14,156.01,24.63]
[1729016366389,7.09021025,156.11,156.01,24.63]
[1729016366705,3.204,156.08,156.01,24.63]
[1729016366997,6.08,156.11,156.03,24.63]
[1729016367199,1.01015334,156.1,156.03,24.63]
[1729016367398,3.2037,156.09,156.05,3.2045]
[1729016368487,6.08,156.11,156.03,3.2049]
[1729016368688,1.01015372,156.1,155.97,24.63]
[1729016368901,1.01015372,156.1,155.97,30.71]
[1729016369196,1.01015372,156.1,156.0,24.63]
[1729016369394,6.08,156.11,156.02,24.63]
[1729016369599,3.2038,156.09,156.05,3.2043]
[1729016369800,7.4288,156.12,156.02,24.63]
[1729016369999,7.4288,156.12,156.02,25.5977]
[1729016370000,3.2037,156.09,156.02,25.5977]
[1729016370195,24.63,156.11,155.97,24.63]
[1729016370399,2.31695714,156.08,155.98,6.08]
[1729016370599,3.2047,156.05,156.01,3.2052]
[1729016372102,3.2049,156.03,156.0,3.2055]
[1729016372299,7.3867,156.08,155.96,6.08]
[1729016372504,1.01035727,156.07,155.96,6.08]
[1729016373303,3.2048,156.04,156.0,3.2054]
[1729016373500,3.2048,156.04,155.96,6.08]
[1729016373501,3.2048,156.04,155.97,24.63]
[1729016373908,3.2048,156.04,156.0,3.2054]
[1729016374108,7.3867,156.08,155.97,24.63]
[1729016374307,3.2046,156.05,155.97,24.63]
[1729016374511,7.3867,156.08,155.97,24.63]
[1729016374709,1.01039982,156.07,155.97,24.63]
[1729016375008,3.2045,156.05,156.02,3.205]
[1729016375405,3.2045,156.05,155.97,24.63]
[1729016375622,3.2045,156.05,156.01,3.2052]
[1729016376001,3.2049,156.04,155.97,24.63]
[1729016376206,3.2049,156.04,156.0,3.2054]
[1729016376603,1.3067,156.08,155.96,6.08]
[1729016376907,14.8491416,156.15,156.04,24.63]
[1729016377107,3.77878162,156.14,156.04,24.63]
[1729016377313,3.2035,156.11,156.07,3.204]
[1729016378412,8.8887,156.14,156.06,3.2043]
[1729016378413,3.2037,156.1,156.06,3.2043]
[1729016378612,3.28345894,156.13,156.02,0.9674]
[1729016378819,7.13008576,156.12,156.02,0.9674]
[1729016379109,1.01008576,156.11,156.02,0.9674]
[1729016380310,1.01008576,156.11,156.06,24.63]
[1729016380509,2.7687,156.14,156.06,24.63]
[1729016380712,4.21294749,156.13,156.09,3.2036]
[1729016380904,1.00984749,156.12,156.09,3.2036]
[1729016381110,2.7687,156.14,156.06,24.63]
[1729016381414,1.0098369,156.13,156.03,30.75]
[1729016381614,4.26551431,156.13,156.03,24.63]
[1729016381919,3.2039,156.09,156.05,3.2045]
[1729016383017,3.204,156.08,156.05,3.2045]
[1729016383412,3.204,156.08,156.04,3.2046]
[1729016383618,3.2042,156.07,156.04,3.2046]
[1729016384316,6.12,156.11,156.04,3.2046]
[1729016384317,3.204,156.08,156.04,3.2046]
[1729016384713,3.204,156.08,156.05,3.2045]
[1729016385507,3.2034,156.11,156.08,3.2038]
[1729016385820,3.2034,156.11,156.03,24.63]
[1729016386012,3.25630854,156.13,156.02,0.9674]
[1729016386213,3.25630854,156.13,156.01,30.75]
[1729016386214,1.00997185,156.12,156.01,30.75]
[1729016386521,3.2043,156.07,156.03,3.2048]
[1729016388410,3.2043,156.07,156.04,3.2047]
[1729016389819,3.2043,156.07,156.02,15.39]
[1729016390026,3.2043,156.07,156.03,3.2048]
[1729016390624,3.2043,156.07,156.04,3.2046]
[1729016391319,15.39,156.08,155.94,0.9654]
[1729016391627,5.03886373,156.07,155.96,15.39]
[1729016391816,3.2048,156.04,155.99,3.2058]
[1729016392123,6.12,156.06,155.96,15.39]
[1729016392423,15.39,156.05,155.94,16.3554]
[1729016392617,15.39,156.05,155.94,15.39]
[1729016392618,15.39,156.03,155.94,15.39]
[1729016392819,6.12,156.02,155.92,15.39]
[1729016393124,3.2059,155.99,155.95,3.2065]
[1729016394033,3.206,155.98,155.95,3.2065]
[1729016394222,6.12,156.0,155.94,24.65]
[1729016394518,3.2054,156.01,155.94,24.65]
[1729016394723,6.12,156.06,156.0,3.2054]
[1729016394912,6.12,156.06,155.96,24.65]
[1729016395116,3.2048,156.04,155.96,24.65]
[1729016395422,6.12,156.06,155.96,24.65]
[1729016395813,3.2047,156.05,156.01,3.2052]
[1729016396126,6.12,156.06,155.96,24.65]
[1729016396325,9.3245,156.06,156.01,3.2052]
[1729016397025,6.12,156.06,155.99,24.65]
[1729016397726,6.12,156.06,156.03,3.2049]
[1729016397930,6.12,156.09,156.01,24.65]
[1729016398125,6.12,156.09,156.05,3.2043]
[1729016398325,6.12,156.09,156.01,24.65]
[1729016399226,1.01025338,156.08,155.89,3.23550712]
[1729016399526,1.01025338,156.08,155.87,6.4163]
[1729016399527,24.65,156.06,155.94,24.65]
[1729016399824,3.2058,156.0,155.94,3.2067]
[1729016400016,6.12,156.01,155.94,3.2067]
[1729016400220,6.12,156.01,155.91,24.65]
[1729016401028,6.12,156.01,155.95,3.2065]
[1729016401029,3.2056,156.0,155.95,3.2065]
[1729016401419,6.12,156.01,155.91,24.65]
[1729016401624,9.3254,156.01,155.96,3.2062]
[1729016401832,9.3254,156.01,155.91,24.65]
[1729016402026,9.3254,156.01,155.96,3.2063]
[1729016402227,9.3254,156.01,155.91,24.65]
[1729016402524,1.3926,156.04,156.01,3.2052]
[1729016402720,14.94611904,156.14,156.02,24.65]
[1729016402917,3.2031,156.12,156.04,24.65]
[1729016403124,1.01009654,156.11,156.04,24.65]
[1729016403625,6.06,156.12,156.04,24.65]
[1729016404030,6.06,156.12,156.02,24.65]
[1729016404230,1.00993462,156.11,156.03,3.2049]
[1729016404436,1.00993462,156.11,156.0,6.12]
[1729016404728,1.00993462,156.11,156.02,3.2051]
[1729016405228,3.2042,156.07,156.03,3.2049]
[1729016405528,3.2042,156.07,155.99,25.6143]
[1729016405529,6.06,156.08,155.99,25.6143]
[1729016405732,6.06,156.08,156.07,3.2041]
[1729016405931,3.2032,156.12,156.02,24.65]
[1729016405932,6.06,156.11,156.02,24.65]
[1729016406429,9.2633,156.11,156.07,3.204]
[1729016406630,6.06,156.11,156.0,24.65]
[1729016407136,1.01002596,156.1,156.0,24.65]
[1729016407434,1.01002596,156.1,156.02,3.2051]
[1729016407623,3.2043,156.07,156.02,3.2051]
[1729016408834,6.06,156.11,156.04,3.2047]
[1729016409037,3.204,156.08,156.04,3.2047]
[1729016409235,6.06,156.11,156.0,24.65]
[1729016409433,1.01009458,156.1,156.03,3.2049]
[1729016409733,24.65,156.09,155.92,69.24]
[1729016409939,24.65,156.07,155.99,3.2056]
[1729016410130,10.2586,156.06,155.99,3.2056]
[1729016410435,3.2054,156.01,155.93,7.0241]
[1729016410630,24.65,156.04,155.93,7.0241]
[1729016411040,3.2058,156.0,155.95,3.2064]
[1729016411424,3.2058,156.0,155.93,7.0241]
[1729016411934,3.2058,156.0,155.96,3.2063]
[1729016412135,6.06,156.02,155.96,3.2063]
[1729016412737,3.2054,156.01,155.97,3.2062]
[1729016412935,6.06,156.02,155.94,24.65]
[1729016413136,4.1986,156.06,155.97,24.65]
[1729016413334,2.765,156.06,156.03,3.2048]
[1729016413528,1.3311,156.1,156.01,24.65]
[1729016413739,1.0101343,156.09,156.07,3.204]
[1729016413931,6.06,156.1,156.03,24.65]
[1729016414534,9.2632,156.12,156.03,24.65]
[1729016414739,6.06,156.12,156.03,24.65]
[1729016414929,1.3207,156.14,156.09,3.2037]
[1729016415133,3.203,156.13,156.06,24.65]
[1729016415742,4.5235,156.14,156.06,24.65]
[1729016416142,1.3207,156.14,156.06,24.65]
[1729016417038,3.1591167,156.13,156.02,6.06]
[1729016417832,3.2038,156.09,156.05,3.2044]
[1729016418337,6.06,156.11,156.05,3.2044]
[1729016418338,3.2039,156.08,156.05,3.2044]
[1729016418652,3.2039,156.08,156.02,6.06]
[1729016418840,6.06,156.11,156.03,3.2048]
[1729016418841,3.2042,156.07,156.03,3.2048]
[1729016419442,3.2044,156.06,156.03,3.2048]
[1729016419643,6.06,156.11,156.01,3.2052]
[1729016419848,1.01002772,156.1,155.99,31.6741]
[1729016420045,3.2047,156.05,155.99,31.6741]
[1729016420341,3.2047,156.05,156.02,3.2051]
[1729016422243,3.2051,156.03,156.0,3.2055]
[1729016422449,6.06,156.07,155.98,6.06]
[1729016422850,3.2048,156.04,156.01,3.2052]
[1729016423546,7.399,156.07,156.01,3.2052]
[1729016423754,3.2045,156.06,156.03,3.2049]
[1729016424146,3.2045,156.06,155.98,6.06]
[1729016424147,7.399,156.07,155.98,6.06]
[1729016424348,6.06,156.1,155.99,24.65]
[1729016424547,6.06,156.1,156.0,0.9653]
[1729016424746,9.2637,156.1,156.07,3.204]
[1729016424946,6.06,156.1,156.07,3.204]
[1729016425254,6.06,156.1,156.08,3.2039]
[1729016425447,6.06,156.13,156.02,30.71]
[1729016425952,9.20598685,156.13,156.02,30.71]
[1729016426159,1.00986506,156.12,156.02,30.71]
[1729016426656,1.00986506,156.12,156.06,3.2043]
[1729016427244,3.2033,156.11,156.05,3.2045]
[1729016427445,3.19230637,156.12,156.02,30.71]
[1729016427749,3.2038,156.09,156.05,3.2045]
[1729016427954,26.0477,156.14,156.05,3.2045]
[1729016427955,9.24717766,156.12,156.05,3.2045]
[1729016428156,6.06,156.12,156.02,30.71]
[1729016428863,26.0477,156.14,156.02,30.71]
[1729016429053,3.2034,156.11,156.06,3.2041]
[1729016430155,1.3565,156.15,156.07,24.65]
[1729016430353,175.12264085,156.2,156.07,24.65]
[1729016430354,1.36,156.18,156.07,24.65]
[1729016430553,1.36,156.18,156.07,25.6155]
[1729016430862,1.36,156.18,156.15,3.2024]
[1729016431061,1.36,156.18,156.07,25.6155]
[1729016431461,1.36,156.18,156.14,3.2026]
[1729016431660,1.36,156.18,156.1,6.06]
[1729016432069,107.22154085,156.2,156.13,3.2029]
[1729016432364,107.22154085,156.2,156.1,30.71]
[1729016432564,107.22154085,156.2,156.17,3.202]
[1729016432768,105.88264085,156.2,156.1,30.71]
[1729016433366,3.2013,156.21,156.1,30.71]
[1729016433367,3.2013,156.21,156.17,3.2019]
[1729016433561,3.2013,156.21,156.08,6.4079]
[1729016433562,3.2013,156.21,156.13,24.65]
[1729016433764,3.25710061,156.24,156.14,5.98]
[1729016433959,3.2011,156.22,156.18,3.2018]
[1729016435263,3.2009,156.23,156.17,3.2021]
[1729016435464,9.23710061,156.24,156.14,5.98]
[1729016435766,1.00908473,156.23,156.14,5.98]
[1729016435964,1.36,156.26,156.15,24.65]
[1729016436163,1.36,156.26,156.16,3.15469871]
[1729016436368,1.36,156.26,156.15,25.6135]
[1729016436567,25.65899169,156.25,156.15,5.98]
[1729016436762,24.65,156.23,156.13,5.98]
[1729016437567,3.2015,156.2,156.16,3.2023]
[1729016438271,3.2015,156.2,156.15,3.2023]
[1729016439159,3.2015,156.2,156.16,3.2021]
[1729016440469,3.2017,156.19,156.16,3.2021]
[1729016440772,24.65,156.23,156.14,3.2025]
[1729016440963,3.2018,156.19,156.12,5.98]
[1729016441162,5.98,156.21,156.12,5.98]
[1729016441876,3.2015,156.2,156.16,3.2021]
[1729016442869,3.2017,156.19,156.15,3.2023]
[1729016443069,5.98,156.21,156.12,5.98]
[1729016443266,3.2017,156.19,156.14,3.2025]
[1729016443572,3.2017,156.19,156.12,5.98]
[1729016444271,9.1814,156.21,156.12,5.98]
[1729016444482,7.2869,156.24,156.13,24.65]
[1729016444664,3.2011,156.22,156.18,3.2017]
[1729016445780,3.2011,156.22,156.13,24.65]
[1729016446172,3.2011,156.22,156.17,3.2019]
[1729016446376,3.2011,156.22,156.13,24.65]
[1729016447079,3.2011,156.22,156.17,3.2019]
[1729016447374,3.2011,156.22,156.13,24.65]
[1729016447582,3.2011,156.22,156.18,3.2018]
[1729016447779,1.3069,156.24,156.18,3.2018]
[1729016448073,3.2013,156.21,156.18,3.2018]
[1729016448381,3.2013,156.21,156.17,3.202]
[1729016448683,3.2015,156.2,156.17,3.202]
[1729016448882,3.2015,156.2,156.16,3.2021]
[1729016449375,3.2015,156.2,156.12,5.98]
[1729016449582,1.3069,156.24,156.18,3.2018]
[1729016449971,1.3069,156.24,156.12,5.98]
[1729016450171,1.3069,156.24,156.17,3.2019]
[1729016450680,3.2017,156.19,156.14,5.98]
[1729016450877,1.3069,156.24,156.14,5.98]
[1729016451869,3.2014,156.21,156.18,3.2019]
[1729016452069,3.2014,156.21,156.14,5.98]
[1729016452276,1.3069,156.24,156.14,5.98]
[1729016452475,3.2016,156.2,156.16,3.2022]
[1729016452781,1.3069,156.24,156.14,5.98]
[1729016453582,3.2012,156.21,156.17,3.2019]
[1729016456077,3.2016,156.2,156.16,3.2021]
[1729016456479,1.3069,156.24,156.13,24.65]
[1729016456677,3.2018,156.19,156.15,3.2023]
[1729016457273,3.2018,156.19,156.16,3.2022]
[1729016458481,3.2015,156.2,156.17,3.2019]
[1729016458675,1.3069,156.24,156.17,3.2019]
[1729016458874,1.00917565,156.23,156.17,3.2019]
[1729016459377,2.32435558,156.34,156.22,24.65]
[1729016459679,2.32435558,156.34,156.28,24.65]
[1729016459974,2.32435558,156.34,156.33,3.1988]
[1729016461479,2.86821286,156.37,156.36,3.1982]
[1729016462474,2.14026749,156.41,156.3,3.16655621]
[1729016462674,3.1974,156.4,156.32,24.65]
[1729016462871,2.14026749,156.41,156.32,24.65]
[1729016463076,1.2955,156.39,156.32,3.199]
[1729016463279,1.2955,156.39,156.3,24.65]
[1729016463280,1.2955,156.39,156.3,30.51]
[1729016463877,4.4932,156.39,156.3,30.51]
[1729016464182,1.2955,156.39,156.3,30.51]
[1729016464685,3.1981,156.37,156.3,30.51]
[1729016464879,3.1981,156.37,156.3,24.65]
[1729016465072,3.1985,156.35,156.3,3.1993]
[1729016465272,1.4014,156.36,156.28,5.86]
[1729016465677,4.5996,156.36,156.28,5.86]
[1729016465984,24.65,156.34,156.2,24.65]
[1729016466681,3.1997,156.29,156.24,3.2004]
[1729016467680,3.1997,156.29,156.21,5.86]
[1729016467681,1.328,156.3,156.21,3.2011]
[1729016467884,2.5933,156.28,156.21,3.2011]
[1729016468089,2.5933,156.28,156.19,5.86]
[1729016468479,3.2001,156.27,156.23,3.2008]
[1729016469176,3.2003,156.26,156.22,3.201]
[1729016470484,3.2004,156.25,156.21,3.2011]
[1729016470682,2.5933,156.28,156.21,3.2011]
[1729016471080,2.5933,156.28,156.2,3.2014]
[1729016471284,2.5933,156.28,156.18,30.51]
[1729016471780,3.2001,156.27,156.22,3.2009]
[1729016471981,2.5933,156.28,156.22,3.2009]
[1729016472485,4.4993,156.28,156.24,3.2006]
[1729016473283,1.2993,156.28,156.25,3.2003]
[1729016473585,1.2993,156.28,156.2,24.65]
[1729016473886,1.2993,156.28,156.26,3.2002]
[1729016474184,1.2993,156.28,156.2,24.65]
[1729016474580,1.2993,156.28,156.25,3.2003]
[1729016474776,1.2993,156.28,156.2,24.65]
[1729016474982,1.2993,156.28,156.26,3.2001]
[1729016475887,1.2993,156.28,156.25,3.2004]
[1729016476185,1.2993,156.28,156.2,24.65]
[1729016476385,5.86,156.27,156.15,24.65]
[1729016476691,1.3168,156.26,156.15,30.51]
[1729016476988,3.201,156.23,156.15,30.51]
[1729016477391,4.45111007,156.26,156.15,30.51]
[1729016477584,3.2012,156.22,156.18,3.2017]
[1729016477781,3.2012,156.22,156.15,30.51]
[1729016479492,4.45111007,156.26,156.17,24.65]
[1729016479787,1.3168,156.26,156.17,24.65]
[1729016480191,4.5171,156.26,156.19,3.2015]
[1729016480386,5.86,156.27,156.2,24.65]
[1729016480789,4.4993,156.28,156.24,3.2005]
[1729016480987,4.4993,156.28,156.23,24.65]
[1729016480988,1.2993,156.28,156.23,24.65]
[1729016482001,1.2993,156.28,156.19,5.86]
[1729016482296,1.2993,156.28,156.2,24.65]
[1729016482691,1.2993,156.28,156.18,24.65]
[1729016483193,3.2008,156.24,156.2,3.2014]
[1729016484095,5.86,156.26,156.2,3.2014]
[1729016484292,5.86,156.26,156.18,3.2018]
[1729016484698,3.2012,156.22,156.18,3.2018]
[1729016484999,3.2012,156.22,156.19,3.2016]
[1729016486897,5.86,156.26,156.15,24.65]
[1729016487097,3.2018,156.19,156.15,3.2024]
[1729016487298,4.50789344,156.28,156.1,24.65]
[1729016487299,5.86,156.21,156.1,24.65]
[1729016487495,10.0507,156.2,156.1,24.65]
[1729016487693,3.22998344,156.19,156.1,24.65]
[1729016488197,5.86,156.19,156.13,24.65]
[1729016488397,26.025,156.27,156.15,24.65]
[1729016488604,3.201,156.23,156.15,24.65]
[1729016488900,5.86,156.25,156.17,24.65]
[1729016489301,3.2007,156.24,156.21,3.2011]
[1729016490100,4.1441,156.27,156.17,24.65]
[1729016490300,4.1441,156.27,156.24,3.2005]
[1729016490301,5.86,156.26,156.24,3.2005]
[1729016490699,5.86,156.26,156.2,24.65]
[1729016491208,2.7691,156.27,156.2,24.65]
[1729016491704,1.375,156.32,156.22,24.65]
[1729016491910,3.1993,156.31,156.27,3.1999]
[1729016492104,8.6365,156.32,156.27,3.1999]
[1729016492495,3.1994,156.3,156.27,3.1999]
[1729016492696,8.6365,156.32,156.27,3.1999]
[1729016493000,3.1993,156.31,156.28,3.1998]
[1729016493703,11.8356,156.32,156.25,24.65]
[1729016494309,11.8356,156.32,156.29,3.1996]
[1729016494504,8.6365,156.32,156.29,3.1996]
[1729016496003,7.2615,156.32,156.29,3.1996]
[1729016496505,10.4605,156.32,156.29,3.1996]
[1729016496711,7.2615,156.32,156.29,3.1996]
[1729016496912,5.92,156.32,156.29,3.1996]
[1729016497798,5.92,156.33,156.29,3.1996]
[1729016498002,5.92,156.34,156.29,3.1996]
[1729016499006,5.92,156.34,156.25,24.65]
[1729016499512,1.00056103,156.33,156.25,24.65]
[1729016499803,3.1992,156.31,156.27,3.1999]
[1729016501307,3.1989,156.33,156.3,3.1994]
[1729016501511,1.00051274,156.32,156.28,24.65]
[1729016501712,5.92,156.34,156.28,24.65]
[1729016501915,1.3993,156.35,156.28,24.65]
[1729016501916,1.3993,156.35,156.32,3.199]
[1729016502112,1.00038177,156.34,156.32,3.199]
[1729016502908,1.3993,156.35,156.33,3.1988]
[1729016503415,1.3993,156.35,156.28,24.65]
[1729016503416,1.00036379,156.34,156.32,3.1989]
[1729016503719,1.3993,156.35,156.28,24.65]
[1729016504126,1.3993,156.35,156.32,3.1989]
[1729016505822,3.1986,156.34,156.3,3.1992]
[1729016506118,1.3993,156.35,156.28,24.65]
[1729016506319,1.3993,156.35,156.26,5.92]
[1729016506320,1.00036544,156.34,156.25,24.65]
[1729016506721,1.3993,156.35,156.25,24.65]
[1729016506919,3.1991,156.32,156.28,3.1997]
[1729016507825,3.1991,156.32,156.29,3.1996]
[1729016508013,5.92,156.34,156.25,24.65]
[1729016508215,7.3193,156.35,156.31,3.199]
[1729016508626,3.1988,156.34,156.28,24.65]
[1729016508926,3.1988,156.34,156.25,24.65]
[1729016509118,7.3193,156.35,156.3,3.1993]
[1729016509522,3.1988,156.33,156.3,3.1993]
[1729016509723,7.3193,156.35,156.32,3.1989]
[1729016510615,10.5178,156.35,156.32,3.1989]
[1729016511531,10.5177,156.35,156.32,3.1989]
[1729016512727,3.199,156.33,156.29,3.1994]
[1729016513524,7.3193,156.35,156.3,3.1993]
[1729016513729,3.1987,156.34,156.26,30.57]
[1729016514033,7.3193,156.35,156.3,3.1993]
[1729016514229,3.1991,156.32,156.26,30.57]
[1729016514728,3.1991,156.32,156.29,3.1995]
[1729016515131,3.199,156.32,156.28,3.1997]
[1729016515430,3.199,156.32,156.26,30.57]
[1729016515730,3.199,156.32,156.29,3.1995]
[1729016517525,3.1988,156.34,156.31,3.1992]
[1729016517730,7.3193,156.35,156.31,3.1992]
[1729016517930,7.3193,156.35,156.3,15.37]
[1729016518132,3.1988,156.33,156.3,18.5693]
[1729016520237,7.3193,156.35,156.3,15.37]
[1729016520837,3.1991,156.32,156.29,3.1995]
[1729016521225,7.3193,156.35,156.28,15.37]
[1729016521430,3.1988,156.33,156.3,3.1992]
[1729016521733,7.3193,156.35,156.3,15.37]
[1729016521933,4.5978,156.35,156.32,3.1989]
[1729016524444,1.3993,156.35,156.3,3.1994]
[1729016524739,1.3993,156.35,156.28,21.05]
[1729016524931,3.1986,156.34,156.32,3.199]
[1729016525127,1.3644,156.36,156.33,15.37]
[1729016525333,5.68,156.39,156.33,15.37]
[1729016525639,16.3701301,156.38,156.29,15.37]
[1729016525836,1.0001301,156.37,156.29,15.37]
[1729016526035,3.1992,156.32,156.27,15.37]
[1729016526536,3.1989,156.33,156.28,3.1996]
[1729016526738,3.14154716,156.32,156.25,15.37]
[1729016526930,4.28039416,156.31,156.25,15.37]
[1729016527134,10.37730596,156.31,156.25,15.37]
[1729016527335,3.1997,156.29,156.26,3.2002]
[1729016527535,1.4175,156.31,156.25,15.37]
[1729016527732,1.4175,156.31,156.27,15.37]
[1729016527941,1.4175,156.31,156.28,3.1997]
[1729016529538,1.4175,156.31,156.25,15.37]
[1729016529734,1.4175,156.31,156.23,21.05]
[1729016529943,3.1998,156.29,156.23,15.37]
[1729016530139,1.4175,156.31,156.23,15.37]
[1729016530345,1.00067169,156.3,156.23,15.37]
[1729016530548,1.00067169,156.3,156.24,3.2005]
[1729016530844,16.7875,156.31,156.21,21.05]
[1729016531236,3.2002,156.27,156.23,3.2007]
[1729016531544,5.68,156.29,156.21,21.05]
[1729016531949,5.68,156.29,156.23,15.37]
[1729016532633,1.4175,156.31,156.25,15.37]
[1729016532855,16.7613,156.34,156.27,15.37]
[1729016532856,1.3913,156.34,156.27,15.37]
[1729016533034,18.1338,156.39,156.29,15.37]
[1729016533245,6.68044729,156.38,156.29,15.37]
[1729016533442,1.00044729,156.37,156.29,15.37]
[1729016533648,3.1984,156.35,156.32,3.1988]
[1729016536147,5.68,156.37,156.29,15.37]
[1729016536744,3.1985,156.35,156.29,15.37]
[1729016536950,3.1985,156.35,156.31,3.1991]
[1729016537146,5.68,156.37,156.29,15.37]
[1729016537355,15.37,156.34,156.27,3.1998]
[1729016537539,15.37,156.34,156.24,21.05]
[1729016537540,15.37,156.32,156.24,21.05]
[1729016537842,1.4222,156.31,156.24,21.05]
[1729016538050,3.1997,156.29,156.26,3.2001]
[1729016538855,3.1997,156.29,156.27,3.2]
[1729016540539,2.7234,156.31,156.27,3.2]